fUST/lending_fUST_20240303
["ID","MTS","AMOUNT","RATE_DAILY","PERIOD"]
[316225124,1709404239359,-500.0,0.0002262,2]
[316225127,1709404239369,-500.0,0.0002262,2]
[316225128,1709404239378,-500.0,0.0002262,2]
[316225129,1709404239387,-950.47,0.0002262,2]
[316225131,1709404239397,-500.0,0.0002262,2]
[316225133,1709404239407,-500.0,0.0002262,2]
[316225135,1709404239416,-500.0,0.0002262,2]
[316225137,1709404239426,-500.0,0.0002262,2]
[316225139,1709404239435,-546.65576753,0.0002262,2]
[316225140,1709404239445,-500.0,0.0002262,2]
[316225141,1709404239455,-1703.23,0.0002262,2]
[316225143,1709404239464,-500.0,0.00022621,2]
[316225144,1709404239474,-500.0,0.00022621,2]
[316225145,1709404239483,-283.7,0.00022621,2]
[316225146,1709404239492,-500.0,0.00022621,2]
[316225147,1709404239502,-500.0,0.00022621,2]
[316225148,1709404239512,-500.0,0.00022621,2]
[316225149,1709404239521,-512.56171063,0.00022621,2]
[316225150,1709404239531,-500.0,0.00022621,2]
[316225153,1709404239629,-500.0,0.00022621,2]
[316225154,1709404239641,-503.46406997,0.00022621,2]
[316225155,1709404239651,-332.96266371,0.00022621,2]
[316225156,1709404239660,-500.0,0.00022621,2]
[316225157,1709404239669,-500.0,0.00022621,2]
[316225158,1709404239678,-500.0,0.00022621,2]
[316225159,1709404239687,-500.0,0.00022621,2]
[316225160,1709404239697,-500.0,0.00022621,2]
[316225161,1709404239706,-500.0,0.00022621,2]
[316225162,1709404239715,-500.0,0.00022621,2]
[316225163,1709404239724,-500.0,0.00022621,2]
[316225164,1709404239733,-500.0,0.00022621,2]
[316225165,1709404239743,-393.80839866,0.00022621,2]
[316225166,1709404239752,-500.0,0.00022621,2]
[316225167,1709404239762,-500.0,0.00022621,2]
[316225168,1709404239771,-500.0,0.00022621,2]
[316225169,1709404239781,-451.77238634,0.00022621,2]
[316225170,1709404239790,-500.0,0.00022621,2]
[316225171,1709404239799,-500.0,0.00022621,2]
[316225172,1709404239813,-500.0,0.00022621,2]
[316225173,1709404239823,-500.0,0.00022621,2]
[316225174,1709404239833,-500.0,0.00022621,2]
[316225175,1709404239843,-500.0,0.00022621,2]
[316225176,1709404239852,-374.58661703,0.00022621,2]
[316225177,1709404239862,-424.66,0.00022621,2]
[316225178,1709404239871,-500.0,0.00022621,2]
[316225179,1709404239881,-500.0,0.00022621,2]
[316225180,1709404239895,-500.0,0.00022621,2]
[316225181,1709404239905,-210.3845508,0.00022621,2]
[316225236,1709404244060,-268.1535,0.00022612,2]
[316225237,1709404244119,-137.4453611,0.00022612,2]
[316225238,1709404244129,-289.6154492,0.00022621,2]
[316225239,1709404244139,-527.03534201,0.00022621,2]
[316225240,1709404244148,-500.0,0.00022621,2]
[316225241,1709404244157,-500.0,0.00022621,2]
[316225242,1709404244166,-500.0,0.00022621,2]
[316225243,1709404244176,-500.0,0.00022621,2]
[316225244,1709404244185,-500.0,0.00022621,2]
[316225245,1709404244193,-276.3176079,0.00022621,2]
[316225246,1709404244205,-223.6823921,0.00022621,2]
[316225247,1709404244214,-500.0,0.00022621,2]
[316225248,1709404244255,-1587.6219603,0.00022622,5]
[316225249,1709404244267,-470.50335268,0.00022622,5]
[316225253,1709404244542,-359.50100004,0.00022622,5]
[316225254,1709404244554,-798.71332576,0.00022622,5]
[316225255,1709404244565,-4173.01785755,0.00022622,5]
[316225256,1709404244577,-5007.37460319,0.00022622,5]
[316225257,1709404244593,-24016.04204102,0.00022622,5]
[316225258,1709404244602,-1000.0,0.0002279,2]
[316225259,1709404244612,-155.40878908,0.00023,2]
[316225260,1709404244621,-1000.0,0.00023293,2]
[316225261,1709404244630,-1000.0,0.00023451,2]
[316225262,1709404244640,-500.0,0.00023626,2]
[316225263,1709404244649,-500.0,0.00023626,2]
[316225264,1709404244659,-500.0,0.00023626,2]
[316225265,1709404244668,-500.0,0.00023626,2]
[316225266,1709404244677,-5000.0,0.00023631,5]
[316225267,1709404244687,-1000.0,0.00023858,5]
[316225268,1709404244696,-500.0,0.00023898,2]
[316225269,1709404244706,-500.0,0.00023898,2]
[316225270,1709404244715,-500.0,0.00023898,2]
[316225271,1709404244724,-500.0,0.00023899,2]
[316225272,1709404244733,-3497.95961222,0.00023968,7]
[316225273,1709404244745,-21484.21720622,0.00023968,7]
[316225274,1709404244754,-500.0,0.00023996,2]
[316225275,1709404244763,-221.85,0.00023996,2]
[316225276,1709404244772,-500.0,0.00023996,2]
[316225277,1709404244781,-500.0,0.00023996,2]
[316225278,1709404244790,-1703.23,0.00023996,2]
[316225279,1709404244800,-189.6,0.00023997,2]
[316225280,1709404244813,-500.0,0.00023997,2]
[316225281,1709404244822,-500.0,0.00023997,2]
[316225282,1709404244831,-500.0,0.00023997,2]
[316225283,1709404244840,-448.13498609,0.00023997,2]
[316225284,1709404244850,-500.0,0.00023997,2]
[316225285,1709404244859,-500.0,0.00023997,2]
[316225286,1709404244868,-500.0,0.00023997,2]
[316225287,1709404244877,-718.22,0.00023997,2]
[316225288,1709404244887,-500.0,0.00023997,2]
[316225289,1709404244896,-500.0,0.00023997,2]
[316225290,1709404244905,-500.0,0.00023997,2]
[316225291,1709404244914,-500.0,0.00023997,2]
[316225292,1709404244923,-500.0,0.00023997,2]
[316225293,1709404244932,-500.0,0.00023997,2]
[316225294,1709404244941,-500.0,0.00023997,2]
[316225295,1709404244950,-950.47,0.00023997,2]
[316225296,1709404244959,-500.0,0.00023997,2]
[316225297,1709404244968,-500.0,0.00023997,2]
[316225298,1709404244977,-500.0,0.00023997,2]
[316225299,1709404244987,-500.0,0.00023997,2]
[316225300,1709404244996,-500.0,0.00023997,2]
[316225301,1709404245006,-500.0,0.00023997,2]
[316225302,1709404245015,-1703.23,0.00023997,2]
[316225303,1709404245025,-214.42576736,0.00023998,2]
[316225304,1709404245034,-321.40419734,0.00023998,2]
[316225305,1709404245044,-155.07753877,0.00023998,2]
[316225306,1709404245055,-887.8135351,0.00023998,2]
[316225307,1709404245064,-1079.67786944,0.00023998,2]
[316225308,1709404245074,-883.48769579,0.00023998,2]
[316225309,1709404245083,-280.51,0.00023998,2]
[316225310,1709404245092,-500.0,0.00023998,2]
[316225311,1709404245101,-500.0,0.00023998,2]
[316225312,1709404245110,-500.0,0.00023998,2]
[316225313,1709404245119,-500.0,0.00023998,2]
[316225314,1709404245128,-500.0,0.00023998,2]
[316225315,1709404245137,-500.0,0.00023998,2]
[316225316,1709404245146,-500.0,0.00023998,2]
[316225317,1709404245155,-500.0,0.00023998,2]
[316225318,1709404245164,-500.0,0.00023998,2]
[316225319,1709404245173,-500.0,0.00023998,2]
[316225320,1709404245182,-718.22,0.00023998,2]
[316225321,1709404245191,-500.0,0.00023998,2]
[316225322,1709404245200,-500.0,0.00023998,2]
[316225323,1709404245209,-500.0,0.00023998,2]
[316225324,1709404245218,-500.0,0.00023998,2]
[316225325,1709404245228,-500.0,0.00023998,2]
[316225326,1709404245237,-500.0,0.00023998,2]
[316225327,1709404245246,-607.47486067,0.00023998,2]
[316225328,1709404245255,-500.0,0.00023998,2]
[316225329,1709404245264,-500.0,0.00023998,2]
[316225330,1709404245273,-500.0,0.00023998,2]
[316225331,1709404245282,-500.0,0.00023998,2]
[316225332,1709404245291,-950.47,0.00023998,2]
[316225333,1709404245301,-500.0,0.00023998,2]
[316225334,1709404245310,-500.0,0.00023998,2]
[316225335,1709404245319,-500.0,0.00023998,2]
[316225336,1709404245328,-505.88376578,0.00023998,2]
[316225337,1709404245337,-500.0,0.00023998,2]
[316225338,1709404245347,-500.0,0.00023998,2]
[316225339,1709404245356,-500.0,0.00023998,2]
[316225340,1709404245365,-500.0,0.00023998,2]
[316225341,1709404245374,-500.0,0.00023998,2]
[316225342,1709404245383,-500.0,0.00023998,2]
[316225343,1709404245392,-500.0,0.00023998,2]
[316225344,1709404245401,-500.0,0.00023998,2]
[316225345,1709404245410,-500.0,0.00023998,2]
[316225346,1709404245419,-1703.23,0.00023998,2]
[316225347,1709404245428,-1703.23,0.00023998,2]
[316225348,1709404245437,-781.5,0.00023998,2]
[316225349,1709404245446,-279.37738581,0.00023999,2]
[316225350,1709404245455,-500.0,0.00023999,2]
[316225351,1709404245464,-500.0,0.00023999,2]
[316225352,1709404245473,-500.0,0.00023999,2]
[316225353,1709404245482,-272.54616604,0.00023999,2]
[316225354,1709404245492,-500.0,0.00023999,2]
[316225355,1709404245501,-500.0,0.00023999,2]
[316225356,1709404245510,-642.83353369,0.00023999,2]
[316225357,1709404245520,-718.22,0.00023999,2]
[316225358,1709404245528,-718.22,0.00023999,2]
[316225359,1709404245538,-718.22,0.00023999,2]
[316225360,1709404245547,-718.22,0.00023999,2]
[316225361,1709404245555,-718.22,0.00023999,2]
[316225362,1709404245565,-718.22,0.00023999,2]
[316225363,1709404245575,-718.22,0.00023999,2]
[316225364,1709404245585,-718.22,0.00023999,2]
[316225365,1709404245594,-718.22,0.00023999,2]
[316225366,1709404245602,-718.22,0.00023999,2]
[316225367,1709404245611,-718.22,0.00023999,2]
[316225369,1709404245621,-718.22,0.00023999,2]
[316225371,1709404245630,-718.22,0.00023999,2]
[316225372,1709404245638,-718.22,0.00023999,2]
[316225373,1709404245647,-718.22,0.00023999,2]
[316225374,1709404245656,-718.22,0.00023999,2]
[316225375,1709404245664,-718.22,0.00023999,2]
[316225376,1709404245674,-718.22,0.00023999,2]
[316225377,1709404245683,-718.22,0.00023999,2]
[316225378,1709404245693,-718.22,0.00023999,2]
[316225379,1709404245702,-718.34256982,0.00023999,2]
[316225380,1709404245711,-500.0,0.00023999,2]
[316225381,1709404245720,-500.0,0.00023999,2]
[316225382,1709404245730,-500.0,0.00023999,2]
[316225384,1709404245739,-500.0,0.00023999,2]
[316225386,1709404245750,-220.28725122,0.00023999,2]
[316225411,1709404995101,98181.88863346,0.00021,2]
[316225461,1709405438436,-317.26763001,0.00021235,2]
[316225462,1709405438446,-781.5,0.00021236,2]
[316225463,1709405438455,-697.26958026,0.00021236,2]
[316225464,1709405438465,-324.78278527,0.00021237,2]
[316225465,1709405438474,-3380.21661389,0.00021241,2]
[316225478,1709405441464,-14162.27870971,0.00021241,2]
[316225479,1709405441474,-696.54401561,0.00022421,3]
[316225480,1709405441484,-412.02904705,0.00022428,3]
[316225481,1709405441494,-191.99365026,0.00022432,2]
[316225482,1709405441503,-500.0,0.00022612,2]
[316225483,1709405441513,-586.89,0.00022612,2]
[316225484,1709405441522,-500.0,0.00022612,2]
[316225485,1709405441532,-500.0,0.00022612,2]
[316225486,1709405441541,-500.0,0.00022612,2]
[316225487,1709405441550,-500.0,0.00022612,2]
[316225488,1709405441560,-500.0,0.00022612,2]
[316225489,1709405441569,-500.0,0.00022612,2]
[316225490,1709405441578,-500.0,0.00022612,2]
[316225491,1709405441587,-242.06563627,0.00022612,2]
[316225504,1709405443520,-257.93436373,0.00022612,2]
[316225505,1709405443530,-44.07561332,0.00022613,2]
[316225520,1709405467588,273.02945812,0.00019141,2]
[316225538,1709405768934,182.01963875,0.00019141,2]
[316226126,1709406427338,62936.5,0.00021,2]
[316226172,1709406632737,-309.36799027,0.00021941,2]
[316226173,1709406632748,-12.09635753,0.00021941,2]
[316226174,1709406632757,-883.67733257,0.00021942,2]
[316226175,1709406632766,-317.26763001,0.00021943,2]
[316226176,1709406632775,-324.78278527,0.00021943,2]
[316226177,1709406632785,-697.26958026,0.00021944,2]
[316226178,1709406632794,-35858.3743221,0.00022411,2]
[316226180,1709406632804,-211.37,0.00022411,2]
[316226182,1709406632812,-500.0,0.00022411,2]
[316226184,1709406632822,-500.0,0.00022411,2]
[316226185,1709406632831,-500.0,0.00022411,2]
[316226186,1709406632840,-500.0,0.00022411,2]
[316226187,1709406632849,-500.0,0.00022412,2]
[316226188,1709406632858,-500.0,0.00022412,2]
[316226189,1709406632867,-500.0,0.00022412,2]
[316226190,1709406632877,-500.0,0.00022412,2]
[316226191,1709406632886,-500.0,0.00022412,2]
[316226192,1709406632895,-500.0,0.00022412,2]
[316226193,1709406632904,-500.0,0.00022412,2]
[316226194,1709406632913,-619.00190312,0.00022413,2]
[316226195,1709406632923,-500.0,0.00022413,2]
[316226196,1709406632932,-506.5975492,0.00022413,2]
[316226197,1709406632941,-500.0,0.00022413,2]
[316226198,1709406632951,-500.0,0.00022413,2]
[316226199,1709406632960,-500.0,0.00022413,2]
[316226200,1709406632971,-500.0,0.00022413,2]
[316226201,1709406632982,-500.0,0.00022413,2]
[316226202,1709406632991,-831.66,0.00022413,2]
[316226203,1709406633000,-500.0,0.00022413,2]
[316226204,1709406633010,-1277.42,0.00022413,2]
[316226205,1709406633019,-500.0,0.00022413,2]
[316226206,1709406633028,-500.0,0.00022413,2]
[316226207,1709406633037,-500.0,0.00022413,2]
[316226208,1709406633048,-500.0,0.00022413,2]
[316226209,1709406633057,-11768.72640933,0.00022414,3]
[316226210,1709406633067,-208.96320469,0.00022414,3]
[316226211,1709406633076,-500.0,0.00022612,2]
[316226212,1709406633085,-500.0,0.00022619,2]
[316226213,1709406633095,-455.92438668,0.00022619,2]
[316226214,1709406633105,-347.6,0.00022619,2]
[316226215,1709406633115,-500.0,0.00022619,2]
[316226216,1709406633124,-416.61971535,0.00022619,2]
[316226217,1709406633134,-500.0,0.00022619,2]
[316226218,1709406633144,-500.0,0.00022619,2]
[316226219,1709406633153,-500.0,0.00022619,2]
[316226220,1709406633163,-570.2,0.00022619,2]
[316226221,1709406633172,-500.0,0.00022619,2]
[316226222,1709406633181,-500.0,0.00022619,2]
[316226223,1709406633191,-622.01,0.00022619,2]
[316226224,1709406633200,-500.0,0.00022619,2]
[316226225,1709406633210,-500.0,0.00022619,2]
[316226226,1709406633219,-500.0,0.00022619,2]
[316226227,1709406633229,-500.0,0.00022619,2]
[316226228,1709406633237,-595.47,0.00022627,2]
[316226229,1709406633247,-831.66,0.00022627,2]
[316226230,1709406633256,-500.0,0.00022627,2]
[316226231,1709406633265,-500.0,0.00022627,2]
[316226232,1709406633275,-500.0,0.00022627,2]
[316226233,1709406633284,-1277.42,0.00022627,2]
[316226234,1709406633292,-500.0,0.00022627,2]
[316226235,1709406633301,-500.0,0.00022627,2]
[316226236,1709406633310,-500.0,0.00022627,2]
[316226237,1709406633319,-550.98,0.00022627,2]
[316226238,1709406633328,-500.0,0.00022627,2]
[316226239,1709406633338,-500.0,0.00022627,2]
[316226240,1709406633347,-500.0,0.00022627,2]
[316226241,1709406633356,-6715.2119379,0.00022628,4]
[316226242,1709406633365,-2466.09446287,0.00022628,4]
[316226264,1709406639634,-781.5,0.0002194,2]
[316226266,1709406639644,-1033.90553713,0.00022628,4]
[316226268,1709406639653,-149.70943727,0.00022628,5]
[316226270,1709406639665,-976.03131657,0.00022628,5]
[316226273,1709406639676,-3116.0114407,0.00022628,5]
[316226276,1709406639687,-643.04903873,0.00022628,5]
[316226279,1709406639697,-331.05,0.00023619,3]
[316226281,1709406639706,-138.58456627,0.00023619,3]
[316226473,1709406641566,-26.93543373,0.00023619,3]
[316226474,1709406641575,-496.6,0.00023619,3]
[316226476,1709406641584,-285.29888257,0.00023629,5]
[316226482,1709406641637,-4263.60915455,0.00023629,5]
[316226484,1709406641648,-451.09196288,0.00023629,5]
[316226485,1709406641657,-980.99356932,0.00023968,7]
[316226487,1709406641666,-547.33705117,0.00023997,2]
[316226678,1709406643703,-88.12294883,0.00023997,2]
[316226680,1709406643712,-831.66,0.00023997,2]
[316226682,1709406643721,-500.0,0.00023997,2]
[316226684,1709406643731,-500.0,0.00023997,2]
[316226685,1709406643741,-500.0,0.00023997,2]
[316226687,1709406643750,-1277.42,0.00023997,2]
[316226689,1709406643760,-500.0,0.00023997,2]
[316226691,1709406643769,-500.0,0.00023997,2]
[316226693,1709406643778,-333.01729729,0.00023997,2]
[316226694,1709406643788,-508.86326725,0.00023997,2]
[316226696,1709406643797,-500.0,0.00023997,2]
[316226698,1709406643806,-500.0,0.00023997,2]
[316226700,1709406643815,-500.0,0.00023997,2]
[316226702,1709406643824,-2432.66718521,0.00023998,2]
[316226704,1709406643834,-215.80459008,0.00023998,2]
[316226705,1709406643843,-981.56420476,0.00023998,2]
[316226708,1709406643856,-98.11366468,0.00023998,2]
[316226709,1709406643866,-204.50406148,0.00023998,2]
[316226711,1709406643877,-12163.6,0.00023998,2]
[316226904,1709406646695,-220.57311768,0.00022414,3]
[316226906,1709406646705,-8475.78902959,0.00023998,2]
[316226908,1709406646715,-635.06,0.00023998,2]
[316226909,1709406646726,-500.0,0.00023998,2]
[316226911,1709406646736,-500.0,0.00023998,2]
[316226913,1709406646745,-831.66,0.00023998,2]
[316226915,1709406646755,-500.0,0.00023998,2]
[316226917,1709406646765,-500.0,0.00023998,2]
[316226919,1709406646773,-500.0,0.00023998,2]
[316226921,1709406646783,-1277.42,0.00023998,2]
[316226923,1709406646792,-500.0,0.00023998,2]
[316226925,1709406646801,-500.0,0.00023998,2]
[316226927,1709406646810,-500.0,0.00023998,2]
[316226929,1709406646819,-500.0,0.00023998,2]
[316226931,1709406646829,-500.0,0.00023998,2]
[316226933,1709406646839,-324.78278527,0.00023998,2]
[316226935,1709406646849,-321.34404688,0.00023998,2]
[316226937,1709406646858,-500.0,0.00023999,2]
[316226939,1709406646867,-626.02839721,0.00023999,2]
[316226941,1709406646876,-831.66,0.00023999,2]
[316226943,1709406646886,-831.66,0.00023999,2]
[316226945,1709406646896,-831.66,0.00023999,2]
[316226947,1709406646905,-831.66,0.00023999,2]
[316226949,1709406646914,-831.66,0.00023999,2]
[316226951,1709406646923,-831.66,0.00023999,2]
[316226953,1709406646932,-831.66,0.00023999,2]
[316226955,1709406646942,-831.66,0.00023999,2]
[316226957,1709406646951,-831.66,0.00023999,2]
[316226959,1709406646960,-831.66,0.00023999,2]
[316226961,1709406646969,-831.66,0.00023999,2]
[316226963,1709406646978,-831.66,0.00023999,2]
[316226965,1709406646988,-831.66,0.00023999,2]
[316226967,1709406646997,-831.66,0.00023999,2]
[316226969,1709406647006,-831.66,0.00023999,2]
[316226971,1709406647015,-831.66,0.00023999,2]
[316226973,1709406647024,-831.66,0.00023999,2]
[316226975,1709406647033,-831.66,0.00023999,2]
[316226977,1709406647043,-831.66,0.00023999,2]
[316226979,1709406647052,-831.71,0.00023999,2]
[316226981,1709406647061,-389.27,0.00023999,2]
[316226983,1709406647070,-500.0,0.00023999,2]
[316226985,1709406647079,-500.0,0.00023999,2]
[316226987,1709406647089,-500.0,0.00023999,2]
[316226989,1709406647098,-500.0,0.00023999,2]
[316226991,1709406647108,-166.74274563,0.00023999,2]
[316226993,1709406647117,-613.85,0.00023999,2]
[316226995,1709406647128,-1277.42,0.00023999,2]
[316226997,1709406647136,-1277.42,0.00023999,2]
[316226999,1709406647146,-1277.42,0.00023999,2]
[316227001,1709406647154,-1277.42,0.00023999,2]
[316227003,1709406647163,-1277.42,0.00023999,2]
[316227005,1709406647173,-482.39952792,0.00023999,2]
[316235267,1709407098072,212.333521,0.00027397,120]
[316235286,1709407718713,54142.25953772,0.00021,2]
[316235289,1709407826464,385.0,0.00015,2]
[316235429,1709407837837,-697.26958026,0.00021835,2]
[316235430,1709407837847,-781.5,0.00021835,2]
[316235431,1709407837856,-883.67733257,0.00021836,2]
[316235433,1709407837866,-317.26763001,0.00021836,2]
[316235435,1709407837875,-186.27937916,0.00021837,2]
[316235436,1709407837886,-324.78278527,0.00021837,2]
[316235439,1709407837902,-500.0,0.0002241,2]
[316235441,1709407837912,-500.0,0.0002241,2]
[316235443,1709407837921,-500.0,0.0002241,2]
[316235445,1709407837930,-500.0,0.0002241,2]
[316235447,1709407837940,-500.0,0.0002241,2]
[316235449,1709407837949,-199.40844968,0.00022412,2]
[316235451,1709407837958,-500.0,0.00022413,2]
[316235453,1709407837968,-500.0,0.00022413,2]
[316235455,1709407837978,-642.51,0.00022413,2]
[316235457,1709407837988,-592.77825968,0.00022413,2]
[316235459,1709407837997,-279.0058242,0.00022414,3]
[316235461,1709407838006,-2990.49893605,0.00022414,3]
[316235463,1709407838016,-213.60706686,0.00022414,3]
[316235465,1709407838024,-441.1718022,0.00022414,3]
[316235467,1709407838033,-500.0,0.00022626,2]
[316235469,1709407838042,-500.0,0.00022626,2]
[316235471,1709407838051,-500.0,0.00022626,2]
[316235473,1709407838061,-500.0,0.00022626,2]
[316235475,1709407838070,-500.0,0.00022626,2]
[316235477,1709407838080,-436.35,0.00022627,2]
[316235479,1709407838088,-189.33,0.00022627,2]
[316235481,1709407838097,-2014.56358137,0.00022634,3]
[316235483,1709407838106,-1301.7893869,0.00022634,4]
[316235485,1709407838115,-155.0,0.00023,2]
[316235487,1709407838124,-1000.0,0.00023254,2]
[316235489,1709407838133,-1000.0,0.00023372,2]
[316235491,1709407838142,-153.0,0.00023452,2]
[316235493,1709407838151,-1000.0,0.0002349,2]
[316235495,1709407838161,-5000.0,0.00023633,5]
[316235497,1709407838170,-5000.0,0.00023633,5]
[316235499,1709407838179,-153.0,0.000237,2]
[316235500,1709407838188,-153.0,0.000237,2]
[316235502,1709407838197,-1284.11198852,0.000239,2]
[316235504,1709407838208,-1000.0,0.00023924,5]
[316235506,1709407838217,-500.0,0.00023973,2]
[316235510,1709407838237,-500.0,0.00023973,2]
[316235512,1709407838248,-6038.01000621,0.00023974,2]
[316235770,1709407840829,-2194.75275166,0.00023974,2]
[316235772,1709407840840,-165.52,0.00023989,3]
[316235774,1709407840850,-496.58,0.00023989,3]
[316235776,1709407840860,-500.0,0.00023996,2]
[316235778,1709407840870,-1057.71,0.00023996,2]
[316235780,1709407840880,-500.0,0.00023996,2]
[316235782,1709407840897,-500.0,0.00023996,2]
[316235784,1709407840907,-210.34,0.00023996,2]
[316235786,1709407840917,-500.0,0.00023997,2]
[316235788,1709407840926,-442.18,0.00023997,2]
[316235790,1709407840937,-500.0,0.00023997,2]
[316235792,1709407840946,-373.30125821,0.00023997,2]
[316235795,1709407840955,-500.0,0.00023997,2]
[316235797,1709407840965,-278.75445995,0.00023997,2]
[316235801,1709407840977,-221.24554005,0.00023997,2]
[316235802,1709407840986,-500.0,0.00023997,2]
[316235805,1709407840996,-500.0,0.00023997,2]
[316235806,1709407841006,-500.0,0.00023997,2]
[316235808,1709407841015,-500.0,0.00023997,2]
[316235810,1709407841025,-500.0,0.00023997,2]
[316235813,1709407841035,-500.0,0.00023997,2]
[316235815,1709407841044,-321.40419734,0.00023998,2]
[316235817,1709407841054,-572.40758911,0.00023998,2]
[316235819,1709407841063,-400.75162755,0.00023998,2]
[316235820,1709407841073,-18193.60008702,0.00023998,2]
[316235822,1709407841083,-155.19710032,0.00023998,2]
[316235824,1709407841092,-4700.60014085,0.00023998,2]
[316235826,1709407841102,-396.04964715,0.00023998,2]
[316235828,1709407841111,-251.59518372,0.00023998,2]
[316235830,1709407841121,-238.50130044,0.00023998,2]
[316235832,1709407841130,-1591.18712695,0.00023998,2]
[316235834,1709407841139,-155.42559837,0.00023998,2]
[316235836,1709407841148,-347.82,0.00023998,2]
[316235838,1709407841158,-500.0,0.00023998,2]
[316235840,1709407841167,-600.55580644,0.00023998,2]
[316235842,1709407841176,-500.0,0.00023998,2]
[316235844,1709407841186,-500.0,0.00023998,2]
[316235847,1709407841196,-500.0,0.00023998,2]
[316235848,1709407841205,-500.0,0.00023998,2]
[316235850,1709407841214,-500.0,0.00023998,2]
[316235852,1709407841224,-500.0,0.00023998,2]
[316235855,1709407841234,-500.0,0.00023998,2]
[316235857,1709407841244,-1057.71,0.00023998,2]
[316235859,1709407841253,-500.0,0.00023998,2]
[316235860,1709407841262,-500.0,0.00023999,2]
[316235862,1709407841272,-500.0,0.00023999,2]
[316235864,1709407841282,-500.0,0.00023999,2]
[316235867,1709407841291,-500.0,0.00023999,2]
[316235868,1709407841300,-613.81283474,0.00023999,2]
[316235871,1709407841310,-191.905253,0.00023999,2]
[316235873,1709407841320,-151.0,0.00023999,2]
[316235875,1709407841330,-151.415487,0.00023999,2]
[316235877,1709407841340,-500.0,0.00023999,2]
[316235879,1709407841349,-500.0,0.00023999,2]
[316235881,1709407841359,-500.0,0.00023999,2]
[316235883,1709407841368,-500.0,0.00023999,2]
[316235885,1709407841377,-500.0,0.00023999,2]
[316235886,1709407841387,-500.0,0.00023999,2]
[316235888,1709407841397,-262.58,0.00023999,2]
[316235890,1709407841406,-500.0,0.00023999,2]
[316235892,1709407841415,-500.0,0.00023999,2]
[316235894,1709407841424,-632.01,0.00023999,2]
[316235896,1709407841434,-500.0,0.00023999,2]
[316235898,1709407841444,-500.0,0.00023999,2]
[316235900,1709407841454,-500.0,0.00023999,2]
[316235902,1709407841463,-500.0,0.00023999,2]
[316235904,1709407841473,-354.83,0.00023999,2]
[316235906,1709407841483,-500.0,0.00023999,2]
[316235909,1709407841493,-500.0,0.00023999,2]
[316235910,1709407841503,-500.0,0.00023999,2]
[316235912,1709407841513,-500.0,0.00023999,2]
[316235915,1709407841522,-500.0,0.00023999,2]
[316235916,1709407841532,-607.99020162,0.00023999,2]
[316235918,1709407841541,-151.0,0.00023999,2]
[316235921,1709407841552,-277.338024,0.00023999,2]
[316235923,1709407841563,-348.34134492,0.00023999,2]
[316235925,1709407841575,-151.65865508,0.00023999,2]
[316235927,1709407841583,-500.0,0.00023999,2]
[316235929,1709407841592,-500.0,0.00023999,2]
[316235931,1709407841602,-229.84029463,0.00023999,2]
[316235933,1709407841611,-500.0,0.00023999,2]
[316235935,1709407841621,-500.0,0.00023999,2]
[316235937,1709407841630,-500.0,0.00023999,2]